fUST/lending_fUST_20240901
["ID","MTS","AMOUNT","RATE_DAILY","PERIOD"]
[336766361,1725124249516,-500.0,0.00032876,31]
[336766362,1725124249526,-500.0,0.00032876,31]
[336766363,1725124249536,-500.0,0.00032876,31]
[336766364,1725124249545,-500.0,0.00032876,31]
[336766365,1725124249558,-910.22,0.00032876,31]
[336766366,1725124249568,-500.0,0.00032876,31]
[336766367,1725124249578,-500.0,0.00032876,31]
[336766368,1725124249588,-801.05,0.00032876,14]
[336766369,1725124249598,-500.0,0.00032876,31]
[336766370,1725124249609,-996.81,0.00032876,31]
[336766371,1725124249619,-965.35,0.00032876,31]
[336766372,1725124249628,-500.0,0.00032876,31]
[336766373,1725124249638,-500.0,0.00032876,31]
[336766374,1725124249648,-500.0,0.00032876,31]
[336766375,1725124249658,-500.0,0.00032876,31]
[336766376,1725124249668,-500.0,0.00032876,31]
[336766377,1725124249678,-843.91,0.00032876,31]
[336766378,1725124249688,-504.23289043,0.00032876,31]
[336766379,1725124249698,-500.0,0.00032876,31]
[336766380,1725124249708,-940.433,0.00032876,7]
[336766381,1725124249719,-500.0,0.00032876,31]
[336766382,1725124249728,-940.433,0.00032876,7]
[336766383,1725124249738,-1109.41,0.00032876,31]
[336766384,1725124249748,-940.433,0.00032876,7]
[336766385,1725124249758,-940.433,0.00032876,7]
[336766386,1725124249769,-940.433,0.00032876,7]
[336766387,1725124249779,-500.0,0.00032876,31]
[336766388,1725124249788,-940.433,0.00032876,7]
[336766389,1725124249798,-940.433,0.00032876,7]
[336766390,1725124249808,-500.0,0.00032876,31]
[336766391,1725124249818,-940.433,0.00032876,7]
[336766392,1725124249829,-940.433,0.00032876,7]
[336766393,1725124249839,-940.433,0.00032876,7]
[336766394,1725124249850,-500.0,0.00032876,31]
[336766395,1725124249862,-940.433,0.00032876,7]
[336766396,1725124249872,-940.433,0.00032876,7]
[336766397,1725124249882,-500.0,0.00032876,31]
[336766398,1725124249893,-363.367102,0.00032876,7]
[336766399,1725124249903,-891.45,0.00032876,7]
[336766400,1725124249913,-500.0,0.00032876,31]
[336766401,1725124249925,-363.367102,0.00032876,7]
[336766402,1725124249935,-363.367102,0.00032876,7]
[336766403,1725124249945,-363.367102,0.00032876,7]
[336766404,1725124249955,-363.367102,0.00032876,7]
[336766405,1725124249964,-500.0,0.00032876,31]
[336766406,1725124249973,-500.0,0.00032876,31]
[336766407,1725124249983,-909.59,0.00032876,31]
[336766408,1725124249992,-363.367102,0.00032876,7]
[336766409,1725124250003,-819.26,0.00032876,31]
[336766410,1725124250013,-363.367102,0.00032876,7]
[336766411,1725124250023,-501.17232282,0.00032876,2]
[336766412,1725124250033,-363.367102,0.00032876,7]
[336766413,1725124250044,-930.58,0.00032876,31]
[336766414,1725124250056,-363.367102,0.00032876,7]
[336766415,1725124250069,-363.367102,0.00032876,7]
[336766416,1725124250078,-500.0,0.00032876,31]
[336766417,1725124250088,-500.0,0.00032876,31]
[336766418,1725124250097,-500.0,0.00032876,31]
[336766419,1725124250107,-151.0,0.00032876,7]
[336766420,1725124250116,-151.0,0.00032876,7]
[336766421,1725124250127,-151.0,0.00032876,7]
[336766422,1725124250136,-151.0,0.00032876,7]
[336766423,1725124250146,-151.0,0.00032876,7]
[336766424,1725124250156,-649.45824325,0.00032876,31]
[336766425,1725124250167,-500.0,0.00032876,31]
[336766426,1725124250176,-151.0,0.00032876,7]
[336766427,1725124250186,-151.0,0.00032876,7]
[336766428,1725124250196,-151.0,0.00032876,7]
[336766429,1725124250207,-151.0,0.00032876,7]
[336766430,1725124250217,-161.132278,0.00032876,7]
[336766431,1725124250227,-500.0,0.00032876,31]
[336766432,1725124250236,-500.0,0.00032876,31]
[336766433,1725124250246,-1103.95,0.00032876,31]
[336766434,1725124250255,-500.0,0.00032876,31]
[336766435,1725124250265,-500.0,0.00032876,31]
[336766436,1725124250274,-500.0,0.00032876,31]
[336766437,1725124250285,-151.0,0.00032876,7]
[336766438,1725124250294,-500.0,0.00032876,31]
[336766439,1725124250305,-151.0,0.00032876,7]
[336766440,1725124250315,-989.3,0.00032876,31]
[336766441,1725124250325,-151.0,0.00032876,7]
[336766442,1725124250335,-500.0,0.00032876,31]
[336766443,1725124250344,-151.0,0.00032876,7]
[336766444,1725124250354,-151.0,0.00032876,7]
[336766445,1725124250364,-151.0,0.00032876,7]
[336766446,1725124250373,-500.0,0.00032876,31]
[336766447,1725124250383,-5147.65,0.00032876,31]
[336766448,1725124250392,-151.0,0.00032876,7]
[336766449,1725124250403,-151.0,0.00032876,7]
[336766450,1725124250412,-151.0,0.00032876,7]
[336766451,1725124250422,-151.0,0.00032876,7]
[336766452,1725124250432,-1102.04,0.00032876,31]
[336766453,1725124250443,-154.340883,0.00032876,7]
[336766454,1725124250454,-500.0,0.00032876,31]
[336766455,1725124250464,-320.90112247,0.00032876,31]
[336766456,1725124250474,-500.0,0.00032876,31]
[336766457,1725124250483,-997.18,0.00032876,31]
[336766458,1725124250493,-500.0,0.00032876,31]
[336766459,1725124250502,-500.0,0.00032876,31]
[336766460,1725124250512,-500.00178909,0.00032876,31]
[336766461,1725124250521,-7392.92523067,0.00032876,31]
[336766464,1725124466211,263.483333,0.00014247,2]
[336766469,1725124803155,499.999999,0.00019178,2]
[336766480,1725125062444,166.872789,0.00014247,2]
[336766482,1725125087555,302.18418731,0.0002,2]
[336766485,1725125245143,-151.47843484,0.000202,2]
[336766495,1725125318068,20140.18432993,0.00014,4]
[336766529,1725125432169,-201.776172,0.00030919,2]
[336766531,1725125432179,-195.923076,0.00031048,2]
[336766532,1725125432188,-195.923076,0.00031133,2]
[336766533,1725125432198,-195.923076,0.00031218,2]
[336766534,1725125432207,-600.0,0.00031232,64]
[336766535,1725125432217,-195.923076,0.00031303,2]
[336766536,1725125432227,-697.62766097,0.0003138,67]
[336766537,1725125432238,-195.923076,0.00031388,2]
[336766538,1725125432249,-195.923076,0.00031473,2]
[336766539,1725125432261,-195.923076,0.00031559,2]
[336766540,1725125432271,-195.923076,0.00031644,2]
[336766541,1725125432280,-195.923076,0.00031729,2]
[336766542,1725125432291,-318.689154,0.00031781,2]
[336766543,1725125432302,-195.923076,0.00031814,2]
[336766544,1725125432312,-500.0,0.00031845,7]
[336766545,1725125432322,-195.923076,0.00031899,2]
[336766546,1725125432331,-195.923076,0.00031984,2]
[336766547,1725125432342,-400.0,0.00031999,2]
[336766548,1725125432352,-79095.98188593,0.00032,2]
[336766549,1725125432361,-195.923076,0.00032069,2]
[336766550,1725125432370,-195.923076,0.00032155,2]
[336766551,1725125432379,-2777.31811701,0.0003216,2]
[336766552,1725125432389,-195.923076,0.0003224,2]
[336766553,1725125432399,-500.0,0.000323,7]
[336766554,1725125432409,-500.0,0.00032312,7]
[336766555,1725125432420,-195.923076,0.00032325,2]
[336766556,1725125432429,-500.0,0.00032334,7]
[336766557,1725125432438,-195.923076,0.0003241,2]
[336766558,1725125432448,-500.0,0.00032494,7]
[336766559,1725125432457,-195.923076,0.00032495,2]
[336766560,1725125432467,-500.0,0.00032526,7]
[336766561,1725125432477,-195.923076,0.0003258,2]
[336766562,1725125432486,-550.14668046,0.00032644,7]
[336766563,1725125432496,-195.923076,0.00032666,2]
[336766564,1725125432507,-500.0,0.00032671,7]
[336766565,1725125432516,-203.03732673,0.00032766,15]
[336766566,1725125432526,-1131.65627854,0.00032766,2]
[336766567,1725125432536,-1131.65627854,0.00032769,2]
[336766568,1725125432551,-1131.65627854,0.00032771,2]
[336766569,1725125432563,-1131.65627854,0.00032774,2]
[336766570,1725125432573,-2000.0,0.00032776,2]
[336766571,1725125432582,-576.59910768,0.00032776,2]
[336766572,1725125432591,-1131.65627854,0.00032776,2]
[336766573,1725125432601,-500.0,0.00032783,7]
[336766574,1725125432610,-167.09379175,0.00032855,2]
[336766575,1725125432620,-500.0,0.00032873,5]
[336766576,1725125432629,-500.0,0.00032873,2]
[336766577,1725125432638,-500.0,0.00032873,5]
[336766578,1725125432648,-193.70618709,0.00032875,2]
[336766579,1725125432657,-354.68821374,0.00032875,2]
[336766580,1725125432671,-500.0,0.00032875,2]
[336766581,1725125432681,-500.0,0.00032875,2]
[336766582,1725125432690,-500.0,0.00032875,2]
[336766583,1725125432700,-257.81744808,0.00032875,2]
[336766584,1725125432711,-500.0,0.00032875,2]
[336766585,1725125432721,-500.0,0.00032875,2]
[336766586,1725125432731,-500.0,0.00032875,2]
[336766587,1725125432743,-500.0,0.00032875,31]
[336766588,1725125432755,-151.810612,0.00032876,7]
[336766589,1725125432764,-500.0,0.00032876,31]
[336766590,1725125432774,-500.0,0.00032876,31]
[336766591,1725125432783,-535.06661804,0.00032876,31]
[336766592,1725125432793,-151.0,0.00032876,7]
[336766593,1725125432802,-151.0,0.00032876,7]
[336766594,1725125432812,-151.0,0.00032876,7]
[336766595,1725125432821,-510.70463407,0.00032876,31]
[336766596,1725125432832,-502.5267118,0.00032876,31]
[336766597,1725125432842,-502.48920924,0.00032876,31]
[336766598,1725125432851,-500.0,0.00032876,31]
[336766599,1725125432860,-500.0,0.00032876,31]
[336766600,1725125432870,-500.0,0.00032876,31]
[336766601,1725125432879,-500.0,0.00032876,31]
[336766602,1725125432889,-500.0,0.00032876,31]
[336766603,1725125432898,-500.0,0.00032876,31]
[336766604,1725125432908,-500.0,0.00032876,31]
[336766605,1725125432917,-500.0,0.00032876,31]
[336766606,1725125432927,-500.0,0.00032876,31]
[336766607,1725125432936,-500.0,0.00032876,31]
[336766608,1725125432945,-500.0,0.00032876,31]
[336766609,1725125432955,-500.0,0.00032876,31]
[336766610,1725125432964,-500.0,0.00032876,31]
[336766611,1725125432973,-644.88,0.00032876,31]
[336766612,1725125432983,-635.5,0.00032876,31]
[336766613,1725125432992,-500.0,0.00032876,31]
[336766614,1725125433003,-534.57,0.00032876,31]
[336766615,1725125433013,-500.29354865,0.00032876,31]
[336766616,1725125433023,-500.0,0.00032876,31]
[336766617,1725125433032,-500.0,0.00032876,31]
[336766618,1725125433042,-500.0,0.00032876,31]
[336766619,1725125433052,-500.0,0.00032876,31]
[336766620,1725125433061,-500.0,0.00032876,31]
[336766621,1725125433071,-500.18148723,0.00032876,31]
[336766622,1725125433082,-500.0,0.00032876,31]
[336766623,1725125433092,-560.61344166,0.00032876,31]
[336766624,1725125433102,-500.0,0.00032876,31]
[336766625,1725125433111,-500.0,0.00032876,31]
[336766626,1725125433121,-500.0,0.00032876,31]
[336766627,1725125433131,-500.0,0.00032876,31]
[336766628,1725125433142,-500.0,0.00032876,31]
[336766629,1725125433153,-500.0,0.00032876,31]
[336766630,1725125433164,-500.0,0.00032876,31]
[336766631,1725125433175,-500.0,0.00032876,31]
[336766632,1725125433185,-500.0,0.00032876,31]
[336766633,1725125433196,-500.0,0.00032876,31]
[336766634,1725125433206,-500.0,0.00032876,31]
[336766635,1725125433217,-500.0,0.00032876,31]
[336766636,1725125433228,-500.0,0.00032876,31]
[336766637,1725125433238,-500.0,0.00032876,31]
[336766638,1725125433249,-500.0,0.00032876,31]
[336766639,1725125433363,-500.0,0.00032876,31]
[336766640,1725125433373,-500.0,0.00032876,31]
[336766641,1725125433383,-500.0,0.00032876,31]
[336766642,1725125433393,-500.0,0.00032876,31]
[336766643,1725125433404,-500.0,0.00032876,31]
[336766644,1725125433414,-797.49,0.00032876,31]
[336766645,1725125433424,-645.54,0.00032876,31]
[336766646,1725125433434,-500.0,0.00032876,31]
[336766647,1725125433444,-500.0,0.00032876,31]
[336766648,1725125433453,-500.0,0.00032876,31]
[336766649,1725125433464,-617.75649372,0.00032876,31]
[336766650,1725125433474,-151.0,0.00032876,7]
[336766651,1725125433484,-151.0,0.00032876,7]
[336766652,1725125433495,-262.580812,0.00032876,7]
[336766653,1725125433508,-243.82111708,0.00032876,31]
[336766654,1725125433518,-500.0,0.00032876,31]
[336766655,1725125433527,-500.0,0.00032876,31]
[336766656,1725125433537,-500.0,0.00032876,31]
[336766657,1725125433546,-500.0,0.00032876,31]
[336766658,1725125433556,-500.0,0.00032876,31]
[336766659,1725125433566,-500.0,0.00032876,31]
[336766660,1725125433576,-500.0,0.00032876,20]
[336766661,1725125433586,-500.0,0.00032876,31]
[336766662,1725125433596,-500.0,0.00032876,31]
[336766663,1725125433606,-500.0,0.00032876,31]
[336766664,1725125433615,-500.0,0.00032876,31]
[336766665,1725125433624,-500.0,0.00032876,31]
[336766666,1725125433634,-500.0,0.00032876,31]
[336766667,1725125433643,-500.0,0.00032876,31]
[336766668,1725125433653,-500.0,0.00032876,31]
[336766669,1725125433665,-500.0,0.00032876,31]
[336766670,1725125433677,-511.27,0.00032876,15]
[336766671,1725125433686,-500.0,0.00032876,31]
[336766672,1725125433696,-500.0,0.00032876,31]
[336766673,1725125433706,-501.33065046,0.00032876,31]
[336766674,1725125433716,-500.0,0.00032876,31]
[336766675,1725125433726,-245.25807954,0.00032876,31]
[336766676,1725125433748,-500.0,0.00032876,31]
[336766677,1725125433759,-500.0,0.00032876,31]
[336766678,1725125433769,-500.0,0.00032876,31]
[336766679,1725125433779,-393.34350349,0.00032876,31]
[336766680,1725125433790,-500.0,0.00032876,31]
[336766681,1725125433800,-500.0,0.00032876,31]
[336766682,1725125433812,-269.84241401,0.00032876,31]
[336766683,1725125433824,-500.0,0.00032876,31]
[336766684,1725125433835,-204.00081528,0.00032876,31]
[336766685,1725125433845,-500.0,0.00032876,31]
[336766686,1725125433855,-500.0,0.00032876,31]
[336766687,1725125433866,-501.19927622,0.00032876,31]
[336766688,1725125433876,-500.0,0.00032876,31]
[336766689,1725125433886,-500.0,0.00032876,31]
[336766690,1725125433896,-500.0,0.00032876,31]
[336766691,1725125433906,-501.4242493,0.00032876,31]
[336766692,1725125433916,-500.0,0.00032876,31]
[336766693,1725125433927,-500.0,0.00032876,31]
[336766694,1725125433938,-500.0,0.00032876,31]
[336766695,1725125433948,-500.0,0.00032876,31]
[336766696,1725125433958,-500.0,0.00032876,7]
[336766697,1725125433968,-484.01926431,0.00032876,31]
[336766698,1725125433978,-500.0,0.00032876,31]
[336766699,1725125433988,-500.0,0.00032876,31]
[336766700,1725125433998,-500.0,0.00032876,31]
[336766701,1725125434009,-500.0,0.00032876,31]
[336766702,1725125434019,-1024.02,0.00032876,31]
[336766703,1725125434029,-500.0,0.00032876,31]
[336766704,1725125434040,-500.0,0.00032876,31]
[336766705,1725125434051,-500.0,0.00032876,31]
[336766706,1725125434063,-500.0,0.00032876,31]
[336766707,1725125434073,-500.0,0.00032876,31]
[336766708,1725125434083,-500.0,0.00032876,31]
[336766709,1725125434093,-500.0,0.00032876,31]
[336766710,1725125434103,-559.1743365,0.00032876,31]
[336766711,1725125434112,-500.3178132,0.00032876,31]
[336766712,1725125434122,-500.0,0.00032876,31]
[336766713,1725125434131,-500.0,0.00032876,31]
[336766714,1725125434141,-500.0,0.00032876,31]
[336766715,1725125434152,-500.0,0.00032876,31]
[336766716,1725125434162,-500.0,0.00032876,31]
[336766717,1725125434172,-500.0,0.00032876,31]
[336766718,1725125434182,-500.0,0.00032876,31]
[336766719,1725125434191,-500.0,0.00032876,31]
[336766720,1725125434201,-500.0,0.00032876,31]
[336766721,1725125434211,-500.0,0.00032876,31]
[336766722,1725125434221,-500.0,0.00032876,31]
[336766723,1725125434232,-500.0,0.00032876,31]
[336766724,1725125434241,-500.0,0.00032876,31]
[336766725,1725125434251,-500.0,0.00032876,31]
[336766726,1725125434263,-500.0,0.00032876,31]
[336766727,1725125434272,-500.0,0.00032876,31]
[336766728,1725125434282,-500.0,0.00032876,31]
[336766729,1725125434291,-500.0,0.00032876,31]
[336766730,1725125434301,-500.0,0.00032876,31]
[336766731,1725125434311,-500.0,0.00032876,31]
[336766732,1725125434320,-500.0,0.00032876,31]
[336766733,1725125434330,-501.59387068,0.00032876,31]
[336766734,1725125434340,-500.0,0.00032876,31]
[336766735,1725125434354,-500.0,0.00032876,31]
[336766736,1725125434364,-500.0,0.00032876,31]
[336766737,1725125434375,-500.0,0.00032876,31]
[336766738,1725125434385,-500.0,0.00032876,31]
[336766739,1725125434395,-501.40880738,0.00032876,31]
[336766740,1725125434406,-500.0,0.00032876,31]
[336766741,1725125434416,-500.0,0.00032876,31]
[336766742,1725125434426,-500.0,0.00032876,31]
[336766743,1725125434436,-500.0,0.00032876,31]
[336766744,1725125434447,-500.0,0.00032876,31]
[336766745,1725125434458,-384.41086874,0.00032876,31]
[336766746,1725125434469,-500.0,0.00032876,31]
[336766747,1725125434479,-500.0,0.00032876,31]
[336766748,1725125434489,-500.0,0.00032876,31]
[336766749,1725125434500,-500.0,0.00032876,31]
[336766750,1725125434510,-500.0,0.00032876,31]
[336766751,1725125434521,-155.621268,0.00032876,7]
[336766752,1725125434531,-500.0,0.00032876,31]
[336766753,1725125434542,-500.0,0.00032876,31]
[336766754,1725125434554,-500.0,0.00032876,31]
[336766755,1725125434564,-393.70475965,0.00032876,31]
[336766756,1725125434574,-524.3306409,0.00032876,31]
[336766757,1725125434584,-500.0,0.00032876,31]
[336766758,1725125434594,-500.0,0.00032876,31]
[336766759,1725125434605,-500.0,0.00032876,31]
[336766760,1725125434617,-525.64965473,0.00032876,31]
[336766761,1725125434630,-500.0,0.00032876,31]
[336766762,1725125434641,-500.0,0.00032876,31]
[336766763,1725125434651,-500.0,0.00032876,31]
[336766764,1725125434662,-208.63904915,0.00032876,31]
[336766765,1725125434676,-500.0,0.00032876,31]
[336766766,1725125434685,-500.0,0.00032876,31]
[336766767,1725125434696,-500.0,0.00032876,31]
[336766768,1725125434706,-500.0,0.00032876,31]
[336766769,1725125434716,-500.0,0.00032876,31]
[336766770,1725125434726,-500.0,0.00032876,31]
[336766771,1725125434737,-500.0,0.00032876,31]
[336766772,1725125434749,-500.0,0.00032876,31]
[336766773,1725125434760,-707.96,0.00032876,31]
[336766774,1725125434771,-500.0,0.00032876,31]
[336766775,1725125434782,-500.0,0.00032876,31]
[336766776,1725125434792,-853.31,0.00032876,31]
[336766777,1725125434802,-500.0,0.00032876,31]
[336766778,1725125434812,-500.0,0.00032876,31]
[336766779,1725125434822,-500.0,0.00032876,31]
[336766780,1725125434832,-501.39913101,0.00032876,31]
[336766781,1725125434842,-698.05,0.00032876,31]
[336766782,1725125434852,-500.20890072,0.00032876,2]
[336766783,1725125434862,-500.0,0.00032876,31]
[336766784,1725125434871,-500.0,0.00032876,31]
[336766785,1725125434882,-231.49135817,0.00032876,31]
[336766786,1725125434892,-1504.55,0.00032876,31]
[336766787,1725125434902,-893.13,0.00032876,31]
[336766788,1725125434912,-500.0,0.00032876,31]
[336766789,1725125434922,-500.0,0.00032876,31]
[336766790,1725125434932,-500.0,0.00032876,31]
[336766791,1725125434943,-500.0,0.00032876,31]
[336766792,1725125434953,-500.0,0.00032876,31]
[336766793,1725125434963,-580.97860983,0.00032876,31]
[336766794,1725125434973,-788.72,0.00032876,14]
[336766795,1725125434987,-500.0,0.00032876,31]
[336766796,1725125434997,-500.0,0.00032876,31]
[336766797,1725125435008,-500.0,0.00032876,31]
[336766798,1725125435137,-500.0,0.00032876,31]
[336766799,1725125435147,-500.0,0.00032876,31]
[336766800,1725125435159,-500.0,0.00032876,31]
[336766801,1725125435168,-500.0,0.00032876,31]
[336766802,1725125435177,-639.98416241,0.00032876,31]
[336766803,1725125435187,-500.0,0.00032876,31]
[336766804,1725125435197,-502.02858944,0.00032876,31]
[336766805,1725125435207,-500.0,0.00032876,31]
[336766806,1725125435217,-500.0,0.00032876,31]
[336766807,1725125435227,-722.39,0.00032876,31]
[336766808,1725125435237,-500.0,0.00032876,31]
[336766809,1725125435247,-516.88,0.00032876,31]
[336766810,1725125435257,-506.43585936,0.00032876,31]
[336766811,1725125435267,-500.0,0.00032876,31]
[336766812,1725125435276,-1034.2,0.00032876,31]
[336766813,1725125435286,-520.48266586,0.00032876,31]
[336766814,1725125435297,-500.0,0.00032876,31]
[336766815,1725125435309,-891.11,0.00032876,7]
[336766816,1725125435320,-1620.89,0.00032876,31]
[336766817,1725125435329,-500.0,0.00032876,31]
[336766818,1725125435339,-500.0,0.00032876,31]
[336766819,1725125435349,-179.16087533,0.00032876,31]
[336766820,1725125435358,-500.0,0.00032876,31]
[336766821,1725125435367,-500.0,0.00032876,31]
[336766822,1725125435377,-500.0,0.00032876,31]
[336766823,1725125435386,-356.18264387,0.00032876,7]
[336766824,1725125435396,-1113.5,0.00032876,31]
[336766825,1725125435406,-500.0,0.00032876,31]
[336766826,1725125435415,-500.78699706,0.00032876,2]
[336766827,1725125435424,-500.0,0.00032876,31]
[336766828,1725125435434,-500.0,0.00032876,31]
[336766829,1725125435444,-500.0,0.00032876,31]
[336766830,1725125435453,-500.0,0.00032876,31]
[336766831,1725125435463,-500.0,0.00032876,31]
[336766832,1725125435472,-500.0,0.00032876,31]
[336766833,1725125435481,-500.0,0.00032876,31]
[336766834,1725125435491,-500.0,0.00032876,31]
[336766835,1725125435501,-500.0,0.00032876,31]
[336766836,1725125435516,-500.0,0.00032876,31]
[336766837,1725125435527,-500.0,0.00032876,31]
[336766838,1725125435537,-500.0,0.00032876,31]
[336766839,1725125435547,-500.0,0.00032876,31]
[336766840,1725125435556,-500.0,0.00032876,31]
[336766841,1725125435565,-500.0,0.00032876,31]
[336766842,1725125435575,-500.0,0.00032876,31]
[336766843,1725125435584,-500.0,0.00032876,31]
[336766844,1725125435593,-500.0,0.00032876,31]
[336766845,1725125435603,-884.63,0.00032876,30]
[336766846,1725125435612,-501.89574785,0.00032876,31]
[336766847,1725125435620,-500.0,0.00032876,31]
[336766848,1725125435630,-500.0,0.00032876,31]
[336766849,1725125435639,-500.0,0.00032876,31]
[336766850,1725125435648,-500.0,0.00032876,31]
[336766851,1725125435658,-500.0,0.00032876,31]
[336766852,1725125435670,-500.0,0.00032876,31]
[336766853,1725125435679,-500.0,0.00032876,31]
[336766854,1725125435688,-1498.12,0.00032876,31]
[336766855,1725125435698,-500.0,0.00032876,31]
[336766856,1725125435708,-500.0,0.00032876,31]
[336766857,1725125435718,-500.0,0.00032876,31]
[336766858,1725125435727,-151.0,0.00032876,7]
[336766859,1725125435736,-151.0,0.00032876,7]
[336766860,1725125435745,-151.0,0.00032876,7]
[336766861,1725125435755,-151.0,0.00032876,7]
[336766862,1725125435765,-151.0,0.00032876,7]
[336766863,1725125435774,-151.0,0.00032876,7]
[336766864,1725125435783,-151.0,0.00032876,7]
[336766865,1725125435792,-230.222701,0.00032876,7]
[336766866,1725125435803,-500.0,0.00032876,31]
[336766867,1725125435813,-500.0,0.00032876,31]
[336766868,1725125435823,-500.07135232,0.00032876,31]
[336766869,1725125435834,-500.0,0.00032876,31]
[336766870,1725125435844,-500.0,0.00032876,31]
[336766871,1725125435856,-500.0,0.00032876,31]
[336766872,1725125435866,-500.0,0.00032876,30]
[336766873,1725125435875,-500.0,0.00032876,31]
[336766874,1725125435885,-500.0,0.00032876,31]
[336766875,1725125435894,-500.39071977,0.00032876,31]
[336766876,1725125435903,-547.5811852,0.00032876,31]
[336766877,1725125435913,-500.0,0.00032876,31]
[336766878,1725125435922,-211.61080011,0.00032876,31]
[336766879,1725125435932,-940.69,0.00032876,31]
[336766880,1725125435941,-500.0,0.00032876,31]
[336766881,1725125435950,-500.61715284,0.00032876,31]
[336766882,1725125435959,-500.0,0.00032876,31]
[336766883,1725125435968,-500.0,0.00032876,31]
[336766884,1725125435978,-947.61718,0.00032876,7]
[336766885,1725125435987,-947.61718,0.00032876,7]
[336766886,1725125435996,-947.61718,0.00032876,7]
[336766887,1725125436006,-947.61718,0.00032876,7]
[336766888,1725125436015,-500.0,0.00032876,31]
[336766889,1725125436025,-947.61718,0.00032876,7]
[336766890,1725125436035,-500.0,0.00032876,31]
[336766891,1725125436044,-947.61718,0.00032876,7]
[336766892,1725125436054,-947.61718,0.00032876,7]
[336766893,1725125436063,-947.61718,0.00032876,7]
[336766894,1725125436073,-947.61718,0.00032876,7]
[336766895,1725125436082,-947.61718,0.00032876,7]
[336766896,1725125436091,-947.61718,0.00032876,7]
[336766897,1725125436101,-947.61718,0.00032876,7]
[336766898,1725125436110,-947.61718,0.00032876,7]
[336766899,1725125436119,-976.06,0.00032876,31]
[336766900,1725125436129,-947.61718,0.00032876,7]
[336766901,1725125436139,-500.0,0.00032876,31]
[336766902,1725125436148,-947.61718,0.00032876,7]
[336766903,1725125436157,-947.61718,0.00032876,7]
[336766904,1725125436166,-947.61718,0.00032876,7]
[336766905,1725125436176,-947.61718,0.00032876,7]
[336766906,1725125436185,-500.0,0.00032876,31]
[336766907,1725125436194,-500.0,0.00032876,31]
[336766908,1725125436203,-500.0,0.00032876,31]
[336766909,1725125436212,-1089.25,0.00032876,31]
[336766910,1725125436222,-500.0,0.00032876,31]
[336766911,1725125436231,-500.0,0.00032876,31]
[336766912,1725125436241,-500.0,0.00032876,31]
[336766913,1725125436251,-500.0,0.00032876,31]
[336766914,1725125436262,-394.10532695,0.00032876,31]
[336766915,1725125436271,-500.0,0.00032876,31]
[336766916,1725125436280,-500.0,0.00032876,31]
[336766917,1725125436289,-500.0,0.00032876,31]
[336766918,1725125436298,-503.54598356,0.00032876,31]
[336766919,1725125436308,-500.0,0.00032876,31]
[336766920,1725125436317,-500.0,0.00032876,31]
[336766921,1725125436326,-841.35,0.00032876,31]
[336766922,1725125436335,-1102.6,0.00032876,31]